[Event "*** Titled Tuesday Blitz"]
[Site "Chess.com"]
[Date "2020.04.21"]
[Round "1"]
[White "artichaud"]
[Black "RestartingChess"]
[Result "1-0"]
[WhiteElo "2224"]
[BlackElo "2549"]
[TimeControl "180+1"]
[EndTime "10:07:22 PDT"]
[Termination "artichaud won by resignation"]

1. e4 {[%clk 0:03:00]} 1... d5 {[%clk 0:02:58.7]} 2. exd5 {[%clk 0:02:59.6]}
2... Qxd5 {[%clk 0:02:59.6]} 3. Nc3 {[%clk 0:02:59.3]} 3... Qd6 {[%clk
0:02:59.4]} 4. Nf3 {[%clk 0:02:59.3]} 4... Nf6 {[%clk 0:02:58.9]} 5. d4 {[%clk
0:02:58.9]} 5... Bg4 {[%clk 0:02:59]} 6. h3 {[%clk 0:02:58.7]} 6... Bxf3 {[%clk
0:02:59.2]} 7. Qxf3 {[%clk 0:02:58.5]} 7... c6 {[%clk 0:03:00.1]} 8. Be3 {[%clk
0:02:38]} 8... e6 {[%clk 0:02:59.9]} 9. O-O-O {[%clk 0:02:36.5]} 9... Be7 {[%clk
0:02:59.3]} 10. g4 {[%clk 0:02:36.2]} 10... Nbd7 {[%clk 0:02:58.3]} 11. Ne4
{[%clk 0:02:31.6]} 11... Nxe4 {[%clk 0:02:58]} 12. Qxe4 {[%clk 0:02:31.7]} 12...
Nf6 {[%clk 0:02:57.8]} 13. Qf3 {[%clk 0:02:28.2]} 13... Nd5 {[%clk 0:02:53]} 14.
Bd2 {[%clk 0:02:27]} 14... Nb6 {[%clk 0:02:35.5]} 15. Kb1 {[%clk 0:02:24.3]}
15... Qxd4 {[%clk 0:02:22.3]} 16. Bc3 {[%clk 0:02:18.8]} 16... Qa4 {[%clk
0:02:10.3]} 17. Bxg7 {[%clk 0:02:17.3]} 17... Rg8 {[%clk 0:02:11]} 18. Be5
{[%clk 0:02:12.9]} 18... Nd5 {[%clk 0:02:02.4]} 19. Bd3 {[%clk 0:01:56.2]} 19...
Nb4 {[%clk 0:01:49.1]} 20. a3 {[%clk 0:01:54.5]} 20... Nxd3 {[%clk 0:01:47.9]}
21. Qxd3 {[%clk 0:01:46.8]} 21... Rg6 {[%clk 0:01:44.7]} 22. Qd7+ {[%clk
0:01:41.8]} 22... Kf8 {[%clk 0:01:43.7]} 23. Qxb7 {[%clk 0:01:41.3]} 23... Re8
{[%clk 0:01:41.2]} 24. Rd7 {[%clk 0:01:39.4]} 24... Qe4 {[%clk 0:01:37.1]} 25.
Rhd1 {[%clk 0:00:58.5]} 25... Qxe5 {[%clk 0:01:36.8]} 26. Rc7 {[%clk 0:00:47.1]}
26... Bf6 {[%clk 0:01:15.1]} 27. Rxf7+ {[%clk 0:00:44]} 27... Kg8 {[%clk
0:01:15.6]} 28. Rdd7 {[%clk 0:00:37.2]} 28... Rg7 {[%clk 0:01:11.9]} 29. c3
{[%clk 0:00:24]} 29... Rb8 {[%clk 0:00:52.3]} 30. Rxg7+ {[%clk 0:00:23.3]} 30...
Bxg7 {[%clk 0:00:52.1]} 31. Rxg7+ {[%clk 0:00:22.9]} 31... Qxg7 {[%clk 0:00:45]}
32. Qxb8+ {[%clk 0:00:22.8]} 32... Qf8 {[%clk 0:00:42.1]} 33. Qxf8+ {[%clk
0:00:21.7]} 33... Kxf8 {[%clk 0:00:43]} 34. Kc2 {[%clk 0:00:22.2]} 34... Kf7
{[%clk 0:00:43.9]} 35. Kd3 {[%clk 0:00:22.3]} 35... Kf6 {[%clk 0:00:44.8]} 36.
Ke4 {[%clk 0:00:22.5]} 36... Kg5 {[%clk 0:00:45.7]} 37. Ke5 {[%clk 0:00:20]}
37... Kh4 {[%clk 0:00:46.6]} 38. f4 {[%clk 0:00:19.8]} 38... Kxh3 {[%clk
0:00:43.3]} 39. Kxe6 {[%clk 0:00:19.2]} 39... Kxg4 {[%clk 0:00:43.4]} 40. f5
{[%clk 0:00:20.1]} 40... h5 {[%clk 0:00:44.1]} 41. f6 {[%clk 0:00:21]} 41... h4
{[%clk 0:00:44.6]} 42. f7 {[%clk 0:00:21.9]} 42... h3 {[%clk 0:00:45.5]} 43.
f8=Q {[%clk 0:00:22.1]} 43... h2 {[%clk 0:00:46.4]} 44. Qh8 {[%clk 0:00:21.9]}
44... Kg3 {[%clk 0:00:46.8]} 45. Kd6 {[%clk 0:00:21.9]} 45... Kg2 {[%clk
0:00:44.7]} 46. Kxc6 {[%clk 0:00:21.8]} 46... h1=B {[%clk 0:00:44.6]} 47. Qxh1+
{[%clk 0:00:21.5]} 47... Kf2 {[%clk 0:00:45.5]} 48. Kb5 {[%clk 0:00:21.3]} 48...
Ke3 {[%clk 0:00:46.4]} 49. Ka6 {[%clk 0:00:21.4]} 49... Kd2 {[%clk 0:00:47.3]}
50. Qd5+ {[%clk 0:00:21.3]} 50... Kc2 {[%clk 0:00:48.2]} 51. c4 {[%clk
0:00:21.5]} 51... Kb1 {[%clk 0:00:48.6]} 52. c5 {[%clk 0:00:22.4]} 52... Ka1
{[%clk 0:00:44.6]} 53. c6 {[%clk 0:00:23.3]} 53... Kb1 {[%clk 0:00:45]} 54. b4
{[%clk 0:00:24.2]} 54... Ka1 {[%clk 0:00:45.6]} 55. Qd2 {[%clk 0:00:24]} 55...
Kb1 {[%clk 0:00:45.9]} 56. c7 {[%clk 0:00:23.9]} 1-0

[Event "*** Titled Tuesday Blitz"]
[Site "Chess.com"]
[Date "2020.04.21"]
[Round "1"]
[White "ChelsieMonica"]
[Black "vlad_Sid"]
[Result "0-1"]
[WhiteElo "2310"]
[BlackElo "2645"]
[TimeControl "180+1"]
[EndTime "10:07:23 PDT"]
[Termination "vlad_Sid won by checkmate"]

1. c4 {[%clk 0:03:00.7]} 1... c5 {[%clk 0:02:36.2]} 2. Nc3 {[%clk 0:03:00.1]}
2... Nc6 {[%clk 0:02:34.5]} 3. Nf3 {[%clk 0:02:58.1]} 3... g6 {[%clk 0:02:30.9]}
4. e3 {[%clk 0:02:57.7]} 4... Bg7 {[%clk 0:02:30.3]} 5. Be2 {[%clk 0:02:54.7]}
5... Nf6 {[%clk 0:02:29.8]} 6. O-O {[%clk 0:02:54.3]} 6... O-O {[%clk
0:02:26.2]} 7. d4 {[%clk 0:02:54.2]} 7... cxd4 {[%clk 0:02:25.2]} 8. Nxd4 {[%clk
0:02:54.2]} 8... Qc7 {[%clk 0:02:23.4]} 9. Ndb5 {[%clk 0:02:48.3]} 9... Qb8
{[%clk 0:02:19.3]} 10. e4 {[%clk 0:02:45.1]} 10... a6 {[%clk 0:02:15.5]} 11. Na3
{[%clk 0:02:44.6]} 11... d6 {[%clk 0:02:12.6]} 12. Bf4 {[%clk 0:02:43.5]} 12...
b6 {[%clk 0:02:00.6]} 13. Rc1 {[%clk 0:02:33.6]} 13... Be6 {[%clk 0:01:54]} 14.
Bf3 {[%clk 0:02:22.2]} 14... Ne5 {[%clk 0:01:52]} 15. Bxe5 {[%clk 0:02:18.6]}
15... dxe5 {[%clk 0:01:52.9]} 16. Nd5 {[%clk 0:02:18.6]} 16... Qb7 {[%clk
0:01:46.8]} 17. Qb3 {[%clk 0:02:11.6]} 17... Rab8 {[%clk 0:01:36.2]} 18. Rfd1
{[%clk 0:02:11.1]} 18... Rfc8 {[%clk 0:01:32.6]} 19. Nc2 {[%clk 0:02:05.5]}
19... b5 {[%clk 0:01:26.3]} 20. cxb5 {[%clk 0:01:56.7]} 20... axb5 {[%clk
0:01:27.2]} 21. Ncb4 {[%clk 0:01:54.3]} 21... Bf8 {[%clk 0:01:20.2]} 22. Qe3
{[%clk 0:01:46.1]} 22... Ne8 {[%clk 0:01:10.5]} 23. h4 {[%clk 0:01:35.6]} 23...
h5 {[%clk 0:01:05.9]} 24. Rxc8 {[%clk 0:01:32.8]} 24... Rxc8 {[%clk 0:01:04.4]}
25. Rc1 {[%clk 0:01:33]} 25... Rxc1+ {[%clk 0:00:54.5]} 26. Qxc1 {[%clk
0:01:32.4]} 26... Nd6 {[%clk 0:00:52.9]} 27. b3 {[%clk 0:01:31.5]} 27... Qa7
{[%clk 0:00:49.4]} 28. Qc7 {[%clk 0:01:23.1]} 28... Qd4 {[%clk 0:00:36.8]} 29.
Qd8 {[%clk 0:01:15.1]} 29... Kg7 {[%clk 0:00:34.8]} 30. Nc6 {[%clk 0:00:54]}
30... Qa1+ {[%clk 0:00:32]} 31. Kh2 {[%clk 0:00:54.1]} 31... Bxd5 {[%clk
0:00:30.4]} 32. exd5 {[%clk 0:00:52.3]} 32... e4 {[%clk 0:00:28.6]} 33. Be2
{[%clk 0:00:46.5]} 33... Nf5 {[%clk 0:00:25.6]} 34. Qc7 {[%clk 0:00:42.1]} 34...
Qe1 {[%clk 0:00:21.5]} 35. Bxb5 {[%clk 0:00:39.4]} 35... Qxf2 {[%clk 0:00:20.3]}
36. Qe5+ {[%clk 0:00:39.1]} 36... Kh7 {[%clk 0:00:18.1]} 37. Qxe4 {[%clk
0:00:39]} 37... Bh6 {[%clk 0:00:17.2]} 38. Qf3 {[%clk 0:00:26]} 38... Bf4+
{[%clk 0:00:16.5]} 39. Kh1 {[%clk 0:00:21.1]} 39... Ng3+ {[%clk 0:00:11.9]} 40.
Kh2 {[%clk 0:00:21.4]} 40... Ne2+ {[%clk 0:00:07.1]} 41. Kh3 {[%clk 0:00:19.4]}
41... Ng1# {[%clk 0:00:07.5]} 0-1

[Event "*** Titled Tuesday Blitz"]
[Site "Chess.com"]
[Date "2020.04.21"]
[Round "1"]
[White "ALEXJR20"]
[Black "Bykov_Egor"]
[Result "0-1"]
[WhiteElo "2254"]
[BlackElo "2601"]
[TimeControl "180+1"]
[EndTime "10:07:24 PDT"]
[Termination "Bykov_Egor won by checkmate"]

1. d4 {[%clk 0:03:00.9]} 1... Nf6 {[%clk 0:03:00]} 2. c4 {[%clk 0:03:01.2]} 2...
e6 {[%clk 0:02:59.9]} 3. Nf3 {[%clk 0:03:01.6]} 3... b6 {[%clk 0:02:59.5]} 4. g3
{[%clk 0:03:01.5]} 4... Ba6 {[%clk 0:02:59.3]} 5. Bg2 {[%clk 0:03:02.1]} 5...
Bxc4 {[%clk 0:02:55.7]} 6. Nc3 {[%clk 0:03:00.3]} 6... d5 {[%clk 0:02:50]} 7.
O-O {[%clk 0:02:57]} 7... Nfd7 {[%clk 0:02:46.9]} 8. Re1 {[%clk 0:02:51.7]} 8...
Be7 {[%clk 0:02:44.6]} 9. b3 {[%clk 0:02:49]} 9... Ba6 {[%clk 0:02:44.1]} 10. e4
{[%clk 0:02:46.9]} 10... dxe4 {[%clk 0:02:27.7]} 11. Nxe4 {[%clk 0:02:47.8]}
11... Bb7 {[%clk 0:02:07.7]} 12. Bf4 {[%clk 0:02:32.7]} 12... Nf6 {[%clk
0:01:50.7]} 13. Ne5 {[%clk 0:02:16.2]} 13... Nxe4 {[%clk 0:01:48.2]} 14. Bxe4
{[%clk 0:02:13.7]} 14... Bxe4 {[%clk 0:01:47.4]} 15. Rxe4 {[%clk 0:02:14.6]}
15... O-O {[%clk 0:01:44.4]} 16. Rc1 {[%clk 0:02:13.1]} 16... c5 {[%clk
0:01:13.2]} 17. Qf3 {[%clk 0:01:55.6]} 17... cxd4 {[%clk 0:00:58.3]} 18. Rxd4
{[%clk 0:01:41.2]} 18... Qxd4 {[%clk 0:00:57.6]} 19. Qxa8 {[%clk 0:01:41]} 19...
Ba3 {[%clk 0:00:34.4]} 20. Re1 {[%clk 0:01:10.5]} 20... Nd7 {[%clk 0:00:24.8]}
21. Qxa7 {[%clk 0:01:04.1]} 21... Nxe5 {[%clk 0:00:24.8]} 22. Bxe5 {[%clk
0:00:56.4]} 22... Qd2 {[%clk 0:00:25.2]} 23. Rf1 {[%clk 0:00:54]} 23... Bc5
{[%clk 0:00:25.7]} 24. a3 {[%clk 0:00:47.4]} 24... Qd5 {[%clk 0:00:25.8]} 25.
Bc7 {[%clk 0:00:32.8]} 25... Qxb3 {[%clk 0:00:24.9]} 26. a4 {[%clk 0:00:32.8]}
26... Qb4 {[%clk 0:00:19.4]} 27. Qa6 {[%clk 0:00:31.9]} 27... g6 {[%clk
0:00:18.6]} 28. Bf4 {[%clk 0:00:30.6]} 28... Kg7 {[%clk 0:00:18.3]} 29. Kg2
{[%clk 0:00:27.9]} 29... Qe4+ {[%clk 0:00:18.1]} 30. Kg1 {[%clk 0:00:27.1]}
30... h6 {[%clk 0:00:18.6]} 31. Qb5 {[%clk 0:00:26.1]} 31... g5 {[%clk
0:00:18.7]} 32. Bc1 {[%clk 0:00:26.4]} 32... Rd8 {[%clk 0:00:18.7]} 33. Bb2+
{[%clk 0:00:26.3]} 33... Kg8 {[%clk 0:00:19]} 34. Qa6 {[%clk 0:00:23]} 34... Qf3
{[%clk 0:00:15.4]} 35. Qb5 {[%clk 0:00:20.5]} 35... Kh7 {[%clk 0:00:14.7]} 36.
a5 {[%clk 0:00:20.5]} 36... Rd1 {[%clk 0:00:14.3]} 37. Qe8 {[%clk 0:00:17.3]}
37... Qxf2+ {[%clk 0:00:13.2]} 38. Kh1 {[%clk 0:00:15.3]} 38... Rxf1# {[%clk
0:00:13.2]} 0-1

[Event "*** Titled Tuesday Blitz"]
[Site "Chess.com"]
[Date "2020.04.21"]
[Round "1"]
[White "Nitzan_Steinberg"]
[Black "Orest_Vovk"]
[Result "1-0"]
[WhiteElo "2847"]
[BlackElo "2445"]
[TimeControl "180+1"]
[EndTime "10:07:26 PDT"]
[Termination "Nitzan_Steinberg won by resignation"]

1. e4 {[%clk 0:02:59.2]} 1... g5 {[%clk 0:02:57.7]} 2. d4 {[%clk 0:02:55.1]}
2... h6 {[%clk 0:02:56.9]} 3. Nc3 {[%clk 0:02:51.6]} 3... Bg7 {[%clk 0:02:57]}
4. Bc4 {[%clk 0:02:51.5]} 4... c5 {[%clk 0:02:56.2]} 5. Nge2 {[%clk 0:02:47.9]}
5... cxd4 {[%clk 0:02:53.4]} 6. Nxd4 {[%clk 0:02:48.8]} 6... Nc6 {[%clk
0:02:53.1]} 7. Be3 {[%clk 0:02:46.6]} 7... d6 {[%clk 0:02:49.5]} 8. Qd2 {[%clk
0:02:45.5]} 8... Nxd4 {[%clk 0:02:43.1]} 9. Bxd4 {[%clk 0:02:45.2]} 9... Bxd4
{[%clk 0:02:44]} 10. Qxd4 {[%clk 0:02:45.9]} 10... Nf6 {[%clk 0:02:44.6]} 11.
O-O-O {[%clk 0:02:44]} 11... Qa5 {[%clk 0:02:36.6]} 12. Nd5 {[%clk 0:02:38]}
12... Qd8 {[%clk 0:01:57.9]} 13. h4 {[%clk 0:02:06]} 13... Rf8 {[%clk
0:01:07.6]} 14. hxg5 {[%clk 0:01:59.3]} 14... Nxd5 {[%clk 0:01:00.1]} 15. gxh6
{[%clk 0:01:51.8]} 15... Nf6 {[%clk 0:00:46.7]} 16. e5 {[%clk 0:01:46.1]} 16...
Nh7 {[%clk 0:00:37.4]} 17. Bd3 {[%clk 0:01:34.2]} 17... Ng5 {[%clk 0:00:26.7]}
18. h7 {[%clk 0:01:30.6]} 18... Nxh7 {[%clk 0:00:21.9]} 19. Rxh7 {[%clk
0:01:29]} 19... Be6 {[%clk 0:00:16.3]} 20. exd6 {[%clk 0:01:14.9]} 20... a6
{[%clk 0:00:08.9]} 21. Be4 {[%clk 0:01:11.4]} 21... Qxd6 {[%clk 0:00:06.8]} 22.
Qxd6 {[%clk 0:01:02.9]} 22... exd6 {[%clk 0:00:06.8]} 23. Bxb7 {[%clk
0:01:02.9]} 23... Ra7 {[%clk 0:00:07.2]} 24. Bc6+ {[%clk 0:01:02.8]} 24... Ke7
{[%clk 0:00:07.7]} 25. Rh4 {[%clk 0:01:02.9]} 25... Rc7 {[%clk 0:00:07.1]} 26.
Ba4 {[%clk 0:01:02.4]} 26... Rg8 {[%clk 0:00:06.3]} 27. g3 {[%clk 0:01:01.5]}
27... Rg4 {[%clk 0:00:06.2]} 28. Rxg4 {[%clk 0:01:00.9]} 28... Bxg4 {[%clk
0:00:07.1]} 29. Rd4 {[%clk 0:01:01.2]} 29... Be6 {[%clk 0:00:07.1]} 30. Bb3
{[%clk 0:01:01]} 30... Bf5 {[%clk 0:00:06]} 31. Kd2 {[%clk 0:01:00.8]} 31... Bg6
{[%clk 0:00:03]} 32. Bc4 {[%clk 0:01:00.7]} 32... a5 {[%clk 0:00:02.7]} 33. Bd3
{[%clk 0:01:00.9]} 33... Rc5 {[%clk 0:00:03.3]} 34. a4 {[%clk 0:00:58.6]} 34...
Bh5 {[%clk 0:00:02.9]} 35. b3 {[%clk 0:00:57.7]} 35... Re5 {[%clk 0:00:02.4]}
36. Re4 {[%clk 0:00:57.1]} 36... f6 {[%clk 0:00:01.9]} 37. Rxe5+ {[%clk
0:00:57.1]} 37... fxe5 {[%clk 0:00:02.8]} 38. c3 {[%clk 0:00:57.3]} 38... Bf7
{[%clk 0:00:02.9]} 39. b4 {[%clk 0:00:56.5]} 39... axb4 {[%clk 0:00:03.8]} 40.
cxb4 {[%clk 0:00:57.3]} 40... d5 {[%clk 0:00:04.5]} 41. Ke3 {[%clk 0:00:55.2]}
41... Kd6 {[%clk 0:00:04.8]} 42. f4 {[%clk 0:00:55.2]} 42... d4+ {[%clk
0:00:05]} 43. Kd2 {[%clk 0:00:54.9]} 43... exf4 {[%clk 0:00:04]} 44. gxf4 {[%clk
0:00:55.8]} 44... Bb3 {[%clk 0:00:03.8]} 45. a5 {[%clk 0:00:55.6]} 45... Bd5
{[%clk 0:00:04.7]} 46. f5 {[%clk 0:00:52.5]} 46... Ke5 {[%clk 0:00:04.6]} 47. b5
{[%clk 0:00:52.2]} 47... Kd6 {[%clk 0:00:04.6]} 48. b6 {[%clk 0:00:50.8]} 48...
Kc6 {[%clk 0:00:04.3]} 49. f6 {[%clk 0:00:49.4]} 49... Kc5 {[%clk 0:00:03.9]}
50. f7 {[%clk 0:00:46.8]} 50... Bxf7 {[%clk 0:00:03.3]} 51. b7 {[%clk
0:00:47.2]} 1-0

[Event "*** Titled Tuesday Blitz"]
[Site "Chess.com"]
[Date "2020.04.21"]
[Round "1"]
[White "ahappypawn"]
[Black "wannabe2700"]
[Result "0-1"]
[WhiteElo "2356"]
[BlackElo "2685"]
[TimeControl "180+1"]
[EndTime "10:07:26 PDT"]
[Termination "wannabe2700 won on time"]

1. c4 {[%clk 0:02:53.5]} 1... f5 {[%clk 0:02:59.6]} 2. g3 {[%clk 0:02:50.5]}
2... Nf6 {[%clk 0:02:59.7]} 3. Bg2 {[%clk 0:02:50.1]} 3... g6 {[%clk 0:03:00.6]}
4. e3 {[%clk 0:02:38.1]} 4... Bg7 {[%clk 0:03:00.8]} 5. Ne2 {[%clk 0:02:38.6]}
5... O-O {[%clk 0:03:01.1]} 6. O-O {[%clk 0:02:39.3]} 6... e5 {[%clk 0:03:00.6]}
7. d3 {[%clk 0:02:33.9]} 7... d6 {[%clk 0:02:53.2]} 8. Nbc3 {[%clk 0:02:33.1]}
8... c6 {[%clk 0:02:50.4]} 9. f4 {[%clk 0:02:29.9]} 9... Re8 {[%clk 0:02:49]}
10. Qc2 {[%clk 0:02:26.7]} 10... Na6 {[%clk 0:02:48.4]} 11. a3 {[%clk
0:02:25.3]} 11... exf4 {[%clk 0:02:45.2]} 12. Nxf4 {[%clk 0:02:16.7]} 12... Ng4
{[%clk 0:02:42.6]} 13. Re1 {[%clk 0:02:13.3]} 13... Qb6 {[%clk 0:02:42]} 14. Na4
{[%clk 0:02:00.5]} 14... Qc7 {[%clk 0:02:40.4]} 15. h3 {[%clk 0:01:56.2]} 15...
Nf6 {[%clk 0:02:28.2]} 16. Bd2 {[%clk 0:01:54.5]} 16... Bd7 {[%clk 0:02:13.4]}
17. Rad1 {[%clk 0:01:47.7]} 17... Re7 {[%clk 0:02:10.7]} 18. b4 {[%clk 0:01:43]}
18... Rae8 {[%clk 0:02:10.2]} 19. Qb3 {[%clk 0:01:16.3]} 19... Kh8 {[%clk
0:02:02.7]} 20. d4 {[%clk 0:01:06]} 20... Ne4 {[%clk 0:02:01.3]} 21. b5 {[%clk
0:00:58.6]} 21... Nb8 {[%clk 0:01:57.7]} 22. Kh2 {[%clk 0:00:46.4]} 22... Bc8
{[%clk 0:01:30.6]} 23. Bc1 {[%clk 0:00:43.3]} 23... Nd7 {[%clk 0:01:30.4]} 24.
Re2 {[%clk 0:00:28.9]} 24... Ndf6 {[%clk 0:01:29.8]} 25. Bb2 {[%clk 0:00:20.9]}
25... g5 {[%clk 0:01:29.2]} 26. Nd3 {[%clk 0:00:20.5]} 26... d5 {[%clk
0:01:29.2]} 27. Ne5 {[%clk 0:00:18.9]} 27... Nd7 {[%clk 0:01:26.2]} 28. bxc6
{[%clk 0:00:16.9]} 28... Nxe5 {[%clk 0:01:21.6]} 29. dxe5 {[%clk 0:00:17.8]}
29... Bxe5 {[%clk 0:01:22.1]} 30. Bxe5+ {[%clk 0:00:14.2]} 30... Qxe5 {[%clk
0:01:23]} 31. Bxe4 {[%clk 0:00:14.7]} 31... dxe4 {[%clk 0:01:11.4]} 32. Rd5
{[%clk 0:00:13.8]} 32... Qf6 {[%clk 0:01:06.3]} 33. cxb7 {[%clk 0:00:10.9]}
33... Bxb7 {[%clk 0:01:06]} 34. Rb5 {[%clk 0:00:10.2]} 34... Bc6 {[%clk
0:01:05.3]} 35. Rb4 {[%clk 0:00:09.3]} 35... f4 {[%clk 0:01:04.2]} 36. exf4
{[%clk 0:00:08.8]} 36... gxf4 {[%clk 0:01:05.1]} 37. Qb2 {[%clk 0:00:08.5]}
37... Qxb2 {[%clk 0:01:03.6]} 38. Nxb2 {[%clk 0:00:09.4]} 38... f3 {[%clk
0:01:01.1]} 39. Re3 {[%clk 0:00:08.8]} 39... Rf8 {[%clk 0:00:40.2]} 40. Kg1
{[%clk 0:00:08]} 40... Rd7 {[%clk 0:00:39.1]} 41. c5 {[%clk 0:00:04.2]} 41...
Rd2 {[%clk 0:00:37]} 42. Kf1 {[%clk 0:00:03.7]} 42... Bd5 {[%clk 0:00:25.2]} 43.
h4 {[%clk 0:00:01.4]} 43... Rg8 {[%clk 0:00:23.5]} 0-1

[Event "*** Titled Tuesday Blitz"]
[Site "Chess.com"]
[Date "2020.04.21"]
[Round "1"]
[White "jerry_77"]
[Black "szefru"]
[Result "0-1"]
[WhiteElo "2502"]
[BlackElo "2132"]
[TimeControl "180+1"]
[EndTime "10:07:26 PDT"]
[Termination "szefru won by resignation"]

1. e4 {[%clk 0:03:00.9]} 1... Nf6 {[%clk 0:02:55.1]} 2. e5 {[%clk 0:03:00.9]}
2... Nd5 {[%clk 0:02:54.6]} 3. Nf3 {[%clk 0:03:01.2]} 3... d6 {[%clk 0:02:54.6]}
4. exd6 {[%clk 0:03:00.9]} 4... exd6 {[%clk 0:02:55.5]} 5. d4 {[%clk 0:03:01.5]}
5... Be7 {[%clk 0:02:55.7]} 6. Bd3 {[%clk 0:03:00.8]} 6... O-O {[%clk
0:02:55.3]} 7. c4 {[%clk 0:03:00.8]} 7... Nb6 {[%clk 0:02:55]} 8. Be3 {[%clk
0:02:59.9]} 8... Bf6 {[%clk 0:02:54.5]} 9. Nc3 {[%clk 0:02:57.7]} 9... Nc6
{[%clk 0:02:53.1]} 10. h4 {[%clk 0:02:47.4]} 10... Bg4 {[%clk 0:02:52.4]} 11.
Qc2 {[%clk 0:02:45.7]} 11... h6 {[%clk 0:02:50.8]} 12. Ne2 {[%clk 0:02:21.8]}
12... Nb4 {[%clk 0:02:42.8]} 13. Qd2 {[%clk 0:02:19.3]} 13... Nxd3+ {[%clk
0:02:39.1]} 14. Qxd3 {[%clk 0:02:20.2]} 14... d5 {[%clk 0:02:37.2]} 15. c5
{[%clk 0:02:04.9]} 15... Nc4 {[%clk 0:02:36.8]} 16. b3 {[%clk 0:02:04.9]} 16...
Nxe3 {[%clk 0:02:32]} 17. fxe3 {[%clk 0:02:05.8]} 17... Re8 {[%clk 0:02:31.1]}
18. O-O-O {[%clk 0:01:43]} 18... Qe7 {[%clk 0:02:17.6]} 19. Nf4 {[%clk
0:01:37.6]} 19... c6 {[%clk 0:02:03.6]} 20. Rde1 {[%clk 0:01:35.4]} 20... Qd7
{[%clk 0:01:59]} 21. Nd2 {[%clk 0:01:22.4]} 21... Bf5 {[%clk 0:01:53.9]} 22. Qc3
{[%clk 0:01:22.1]} 22... b6 {[%clk 0:01:53]} 23. Nh5 {[%clk 0:01:22.2]} 23...
Be7 {[%clk 0:01:45.5]} 24. Nf3 {[%clk 0:01:13.9]} 24... bxc5 {[%clk 0:01:37.2]}
25. dxc5 {[%clk 0:01:14.1]} 25... Bf8 {[%clk 0:01:35.3]} 26. Nd4 {[%clk
0:00:55.2]} 26... Be4 {[%clk 0:01:29.5]} 27. Rhg1 {[%clk 0:00:53.7]} 27... Qg4
{[%clk 0:01:21.3]} 28. Nf4 {[%clk 0:00:50.9]} 28... Qxh4 {[%clk 0:01:16.2]} 29.
g4 {[%clk 0:00:50.3]} 29... Qg5 {[%clk 0:01:08.1]} 30. Nh3 {[%clk 0:00:44.3]}
30... Qe7 {[%clk 0:01:07.8]} 31. g5 {[%clk 0:00:44.3]} 31... h5 {[%clk
0:01:07.2]} 32. g6 {[%clk 0:00:40.4]} 32... fxg6 {[%clk 0:01:03.1]} 33. Nf4
{[%clk 0:00:39]} 33... Qxc5 {[%clk 0:01:02.6]} 34. Qxc5 {[%clk 0:00:23]} 34...
Bxc5 {[%clk 0:01:03.5]} 35. Nde6 {[%clk 0:00:21.1]} 35... Bb6 {[%clk 0:00:59.5]}
36. Ng5 {[%clk 0:00:15.3]} 36... Bf5 {[%clk 0:00:58.5]} 37. Rg3 {[%clk
0:00:15.7]} 37... h4 {[%clk 0:00:42.6]} 38. Rf3 {[%clk 0:00:14.8]} 38... Bg4
{[%clk 0:00:42.4]} 39. Rff1 {[%clk 0:00:14.6]} 39... Bxe3+ {[%clk 0:00:41.2]}
40. Kb2 {[%clk 0:00:14.2]} 40... Bd4+ {[%clk 0:00:39.8]} 41. Ka3 {[%clk
0:00:14.1]} 41... Bc5+ {[%clk 0:00:35.9]} 42. b4 {[%clk 0:00:13.4]} 42... Be3
{[%clk 0:00:31]} 43. Rxe3 {[%clk 0:00:07.9]} 43... Rxe3+ {[%clk 0:00:29.8]} 44.
Ka4 {[%clk 0:00:07.2]} 44... Rf8 {[%clk 0:00:28.8]} 0-1

[Event "*** Titled Tuesday Blitz"]
[Site "Chess.com"]
[Date "2020.04.21"]
[Round "1"]
[White "David_Paravyan"]
[Black "Vamostodorecto"]
[Result "1-0"]
[WhiteElo "3009"]
[BlackElo "2473"]
[TimeControl "180+1"]
[EndTime "10:07:28 PDT"]
[Termination "David_Paravyan won on time"]

1. e4 {[%clk 0:02:56.6]} 1... e5 {[%clk 0:02:58.2]} 2. Nf3 {[%clk 0:02:56.9]}
2... Nc6 {[%clk 0:02:53.6]} 3. Bb5 {[%clk 0:02:57.3]} 3... a6 {[%clk 0:02:53.8]}
4. Ba4 {[%clk 0:02:57.4]} 4... Nf6 {[%clk 0:02:54]} 5. d3 {[%clk 0:02:57.7]}
5... b5 {[%clk 0:02:52.4]} 6. Bb3 {[%clk 0:02:55.8]} 6... Bb7 {[%clk 0:02:53]}
7. Ng5 {[%clk 0:02:52.8]} 7... d5 {[%clk 0:02:50]} 8. exd5 {[%clk 0:02:53.7]}
8... Nd4 {[%clk 0:02:40.8]} 9. c4 {[%clk 0:02:48.5]} 9... c6 {[%clk 0:02:10.8]}
10. d6 {[%clk 0:02:09.8]} 10... c5 {[%clk 0:01:30.6]} 11. cxb5 {[%clk
0:02:05.7]} 11... Nxb3 {[%clk 0:01:27.7]} 12. Qxb3 {[%clk 0:02:00.6]} 12... Bd5
{[%clk 0:01:26.7]} 13. Qa4 {[%clk 0:01:58.7]} 13... Qd7 {[%clk 0:01:14.8]} 14.
Nc3 {[%clk 0:01:52.3]} 14... Bxg2 {[%clk 0:01:11.3]} 15. Rg1 {[%clk 0:01:46.3]}
15... axb5 {[%clk 0:01:10.5]} 16. Qxb5 {[%clk 0:01:40.5]} 16... Bc6 {[%clk
0:01:09.8]} 17. Qxc5 {[%clk 0:01:26.4]} 17... Bxd6 {[%clk 0:01:09.8]} 18. Qc4
{[%clk 0:01:10.7]} 18... O-O {[%clk 0:01:04.8]} 19. Qh4 {[%clk 0:01:07.7]} 19...
Be7 {[%clk 0:00:56.7]} 20. Qg3 {[%clk 0:01:00.5]} 20... Nh5 {[%clk 0:00:45.4]}
21. Qh3 {[%clk 0:00:31.8]} 21... Qxh3 {[%clk 0:00:37.5]} 22. Nxh3 {[%clk
0:00:32.7]} 22... Rfd8 {[%clk 0:00:36.5]} 23. Ke2 {[%clk 0:00:29.4]} 23... Rd7
{[%clk 0:00:27.8]} 24. Be3 {[%clk 0:00:28.1]} 24... f5 {[%clk 0:00:24.5]} 25.
Ng5 {[%clk 0:00:20.6]} 25... f4 {[%clk 0:00:23.2]} 26. Bd2 {[%clk 0:00:19.9]}
26... Rad8 {[%clk 0:00:20.2]} 27. Nge4 {[%clk 0:00:11.3]} 27... Rxd3 {[%clk
0:00:17.8]} 28. f3 {[%clk 0:00:11.6]} 28... Bb4 {[%clk 0:00:14.4]} 29. Rg5
{[%clk 0:00:09.7]} 29... g6 {[%clk 0:00:11.9]} 30. Rxe5 {[%clk 0:00:08.3]} 30...
Bxc3 {[%clk 0:00:05.9]} 31. Bxc3 {[%clk 0:00:07]} 31... Re3+ {[%clk 0:00:06.2]}
32. Kf2 {[%clk 0:00:06.6]} 32... Rdd3 {[%clk 0:00:04.7]} 33. Ng5 {[%clk
0:00:05.1]} 1-0